[Event "Vezerkepzo GM March 2022"]
[Site "Budapest"]
[Date "2022.03.19"]
[Round "3.2"]
[White "Varga, Zoltan"]
[Black "Prraneeth Vuppala"]
[Result "1/2-1/2"]
[ECO "A33"]
[WhiteElo "2390"]
[BlackElo "2400"]
[Annotator "NA"]
[PlyCount "81"]
[EventDate "2022.03.17"]
[EventType "tourn"]
[EventCountry "HUN"]
[SourceTitle "playchess.com"]
[Source "ChessBase"]
[SourceQuality "1"]
[TimeControl "40/5400+30:1800+30"]

1. c4 {[%emt 0:13:27]} c5 {[%emt 0:01:34]} 2. Nf3 {[%emt 0:00:07]} Nf6 {[%emt 0:01:26]} 3. d4 {[%emt 0:00:04]} cxd4 {[%emt 0:01:20]} 4. Nxd4 {[%emt 0:00:07]} Nc6 {[%emt 0:00:06]} 5. Nc3 {[%emt 0:00:04]} e6 {[%emt 0:00:32]} 6. Ndb5 {[%emt 0:00:43]} d5 {[%emt 0:03:54]} 7. Bf4 {[%emt 0:07:50]} e5 {[%emt 0:00:43]} 8. cxd5 {[%emt 0:00:06]} exf4 {[%emt 0:00:26]} 9. dxc6 {[%emt 0:00:02]} bxc6 {[%emt 0:00:25]} 10. Qxd8+ {[%emt 0:00:33]} Kxd8 {[%emt 0:00:08]} 11. Rd1+ {[%emt 0:00:21]} Bd7 {[%emt 0:00:46]} 12. Nd4 $11 {[%emt 0:08:27]} Kc7 {[%emt 0:33:34]} 13. g3 {[%emt 0:09:43]} Rb8 {[%emt 0:05:15]} 14. Nb3 {[%emt 0:04:10]} Be6 {[%emt 0:23:07]} 15. Bg2 {[%emt 0:01:18]} Bxb3 {[%emt 0:03:58]} 16. axb3 {[%emt 0:00:04]} Rxb3 {[%emt 0:00:48]} 17. O-O {[%emt 0:00:51]} fxg3 {[%emt 0:05:30]} 18. hxg3 {[%emt 0:05:43]} Nd7 {[%emt 0:01:28]} 19. Ra1 {[%emt 0:01:38]} Rxb2 {[%emt 0:05:04]} 20. Rxa7+ {[%emt 0:03:08]} Rb7 {[%emt 0:00:47]} 21. Nb5+ {[%emt 0:04:00]} Kb6 {[%emt 0:02:21]} 22. Rxb7+ {[%emt 0:07:08]} Kxb7 {[%emt 0:00:02]} 23. Rb1 {[%emt 0:00:24]} Bc5 {[%emt 0:03:44]} 24. Nd4+ {[%emt 0:01:33]} Kc7 {[%emt 0:00:11]} 25. Nxc6 {[%emt 0:00:05]} Re8 {[%emt 0:01:29]} 26. e3 {[%emt 0:01:25]} g6 {[%emt 0:02:16]} 27. Na5 {[%emt 0:00:27]} Re6 {[%emt 0:02:19]} 28. Rc1 {[%emt 0:04:04]} Rb6 {[%emt 0:00:40]} 29. Bd5 {[%emt 0:01:52]} f6 {[%emt 0:00:26]} 30. Nb3 {[%emt 0:01:37]} Kd6 {[%emt 0:00:29]} 31. Bg8 {[%emt 0:00:05]} Rb8 {[%emt 0:00:39]} 32. Nxc5 {[%emt 0:04:19]} Rxg8 {[%emt 0:00:05]} 33. Rd1+ {[%emt 0:00:06]} Kxc5 {[%emt 0:00:04]} 34. Rxd7 {[%emt 0:00:02]} h5 {[%emt 0:00:19]} 35. Kg2 {[%emt 0:00:22]} Kc6 {[%emt 0:00:23]} 36. Rd4 {[%emt 0:01:24]} Rg7 {[%emt 0:00:18]} 37. Ra4 {[%emt 0:00:30]} Kd6 {[%emt 0:00:49]} 38. Ra6+ {[%emt 0:00:44]} Ke7 {[%emt 0:00:49]} 39. f4 {[%emt 0:00:31]} Rg8 {[%emt 0:00:40]} 40. Ra7+ {[%emt 0:00:00]} Ke6 {[%emt 0:00:00]} 41. Ra6+ {[%emt 0:00:19]} 1/2-1/2

[Event "Vezerkepzo GM March 2022"]
[Site "Budapest"]
[Date "2022.03.19"]
[Round "3.5"]
[White "Seres, Lajos"]
[Black "Kulkarni Bhakti"]
[Result "1/2-1/2"]
[ECO "E60"]
[WhiteElo "2387"]
[BlackElo "2388"]
[Annotator "ChessBase"]
[PlyCount "46"]
[EventDate "2022.03.17"]
[EventType "tourn"]
[EventCountry "HUN"]
[SourceTitle "playchess.com"]
[Source "ChessBase"]
[SourceQuality "1"]
[TimeControl "40/5400+30:1800+30"]

1. Nf3 {[%emt 0:00:04]} Nf6 {[%emt 0:01:46]} 2. c4 {[%emt 0:00:11]} g6 {[%emt 0:00:48]} 3. g3 {[%emt 0:00:18]} Bg7 {[%emt 0:00:18]} 4. Bg2 {[%emt 0:00:04]} O-O {[%emt 0:00:28]} 5. d4 {[%emt 0:00:23]} c5 {[%emt 0:00:36]} 6. Nc3 {[%emt 0:01:26]} cxd4 {[%emt 0:00:14]} 7. Nxd4 {[%emt 0:00:04]} Qc7 {[%emt 0:00:10]} 8. b3 {[%emt 0:30:12]} d5 {[%emt 0:00:15]} 9. Ncb5 {[%emt 0:09:07]} Qd7 {[%emt 0:06:42]} 10. O-O {[%emt 0:06:32]} dxc4 {[%emt 0:02:50]} 11. bxc4 {[%emt 0:00:06]} Rd8 {[%emt 0:01:20]} 12. Qb3 {[%emt 0:15:08]} a6 {[%emt 0:17:49]} 13. Nc3 {[%emt 0:00:07]} Qc7 {[%emt 0:01:50]} 14. Be3 {[%emt 0:00:53]} e6 {[%emt 0:15:43]} 15. Nxe6 {[%emt 0:20:11]} fxe6 {[%emt 0:00:58]} 16. Bb6 {[%emt 0:00:04]} Qe7 {[%emt 0:00:27]} 17. Bxd8 {[%emt 0:00:08]} Qxd8 {[%emt 0:00:05]} 18. Bxb7 {[%emt 0:00:04]} Bxb7 {[%emt 0:03:22]} 19. Qxb7 {[%emt 0:00:07]} Nbd7 {[%emt 0:00:08]} 20. Qc6 {[%emt 0:02:55]} Nf8 {[%emt 0:06:46]} 21. Rab1 {[%emt 0:01:31]} Qc8 {[%emt 0:01:49]} 22. Qf3 {[%emt 0:00:18]} Ra7 {[%emt 0:03:42]} 23. Ne4 {[%emt 0:00:40]} Nxe4 {[%emt 0:02:31]} 1/2-1/2

[Event "Vezerkepzo GM March 2022"]
[Site "Budapest"]
[Date "2022.03.21"]
[Round "4.1"]
[White "Ilincic, Zlatko"]
[Black "Kulkarni Bhakti"]
[Result "1/2-1/2"]
[ECO "A58"]
[WhiteElo "2331"]
[BlackElo "2388"]
[Annotator "NA"]
[PlyCount "76"]
[EventDate "2022.03.17"]
[EventType "tourn"]
[EventCountry "HUN"]
[SourceTitle "playchess.com"]
[Source "ChessBase"]
[SourceQuality "1"]
[TimeControl "40/5400+30:1800+30"]

1. d4 {[%emt 0:00:06]} Nf6 {[%emt 0:00:18]} 2. c4 {[%emt 0:00:12]} g6 {[%emt 0:00:32]} 3. g3 {[%emt 0:00:17]} c5 {[%emt 0:00:19]} 4. d5 {[%emt 0:00:17]} b5 {[%emt 0:00:21]} 5. cxb5 {[%emt 0:04:21]} a6 {[%emt 0:02:54]} 6. bxa6 {[%emt 0:00:17]} Bg7 {[%emt 0:00:28]} 7. Nc3 {[%emt 0:00:19]} O-O {[%emt 0:01:38]} 8. Nf3 {[%emt 0:00:16]} d6 {[%emt 0:00:24]} 9. Bg2 {[%emt 0:00:53]} Bxa6 {[%emt 0:00:56]} 10. O-O {[%emt 0:00:10]} Nbd7 {[%emt 0:00:08]} 11. Ne1 {[%emt 0:00:45]} Ng4 {[%emt 0:07:36]} 12. Bd2 {[%emt 0:09:01]} Qb6 {[%emt 0:08:58]} 13. Rb1 {[%emt 0:01:45]} Rfb8 {[%emt 0:00:40]} 14. Nc2 {[%emt 0:01:13]} Qa5 $11 {[%emt 0:04:56]} 15. Bh3 {[%emt 0:10:39]} Ngf6 {[%emt 0:01:28]} 16. b3 {[%emt 0:00:33]} Qc7 {[%emt 0:08:14]} 17. a4 {[%emt 0:04:41]} Nb6 {[%emt 0:03:16]} 18. Bg2 {[%emt 0:01:22]} Bb7 {[%emt 0:01:21]} 19. e4 {[%emt 0:03:59]} c4 {[%emt 0:05:49]} 20. Nd4 {[%emt 0:35:27]} cxb3 {[%emt 0:02:19]} 21. Qxb3 {[%emt 0:07:33]} Nc4 {[%emt 0:20:01]} 22. Bg5 {[%emt 0:08:01]} Na5 {[%emt 0:06:50]} 23. Qb4 {[%emt 0:01:10]} Qd8 {[%emt 0:04:52]} 24. Ncb5 {[%emt 0:03:56]} Nd7 {[%emt 0:00:13]} 25. Nxd6 {[%emt 0:01:55]} h6 {[%emt 0:00:41]} 26. Nxf7 {[%emt 0:00:20]} Kxf7 {[%emt 0:02:35]} 27. Ne6 {[%emt 0:00:09]} Qe8 {[%emt 0:00:38]} 28. Nc7 {[%emt 0:00:23]} Qd8 {[%emt 0:00:20]} 29. Ne6 {[%emt 0:02:24]} Qe8 {[%emt 0:00:02]} 30. Nxg7 {[%emt 0:00:28]} Kxg7 {[%emt 0:00:12]} 31. Bxe7 {[%emt 0:01:12]} Ba6 {[%emt 0:04:14]} 32. Qc3+ {[%emt 0:00:21]} Kh7 {[%emt 0:00:23]} 33. Rxb8 {[%emt 0:00:26]} Rxb8 {[%emt 0:00:03]} 34. Re1 {[%emt 0:01:22]} Nc4 {[%emt 0:08:26]} 35. d6 {[%emt 0:00:13]} Qf7 {[%emt 0:02:25]} 36. f4 {[%emt 0:00:15]} Rb2 {[%emt 0:00:58]} 37. Bf1 {[%emt 0:00:13]} Ra2 {[%emt 0:00:36]} 38. Qb3 {[%emt 0:01:10]} Rd2 {[%emt 0:00:45]} 1/2-1/2

[Event "Vezerkepzo GM March 2022"]
[Site "Budapest"]
[Date "2022.03.21"]
[Round "4.3"]
[White "Pranav Anand"]
[Black "Csiki, Endre"]
[Result "1-0"]
[ECO "E11"]
[WhiteElo "2436"]
[BlackElo "2320"]
[Annotator "ChessBase"]
[PlyCount "63"]
[EventDate "2022.03.17"]
[EventType "tourn"]
[EventCountry "HUN"]
[SourceTitle "playchess.com"]
[Source "ChessBase"]
[SourceQuality "1"]
[TimeControl "40/5400+30:1800+30"]

1. d4 {[%emt 0:00:04]} d5 {[%emt 0:03:05]} 2. c4 {[%emt 0:00:11]} e6 {[%emt 0:00:06]} 3. Nf3 {[%emt 0:00:05]} Nf6 {[%emt 0:00:03]} 4. g3 {[%emt 0:00:04]} Bb4+ {[%emt 0:00:07]} 5. Bd2 {[%emt 0:00:05]} Be7 {[%emt 0:00:04]} 6. Bg2 {[%emt 0:00:04]} O-O {[%emt 0:00:04]} 7. O-O {[%emt 0:00:03]} Nbd7 {[%emt 0:00:04]} 8. Nc3 {[%emt 0:00:14]} dxc4 {[%emt 0:01:53]} 9. e4 {[%emt 0:00:05]} c5 {[%emt 0:04:26]} 10. Bf4 {[%emt 0:02:26]} cxd4 {[%emt 0:07:16]} 11. Qxd4 {[%emt 0:00:02]} Nc5 {[%emt 0:12:19]} 12. Qxc4 {[%emt 0:15:56]} b5 {[%emt 0:03:29]} 13. Nxb5 {[%emt 0:02:27]} Ba6 {[%emt 0:00:05]} 14. Nfd4 {[%emt 0:13:16]} Qb6 {[%emt 0:02:02]} 15. a4 {[%emt 0:06:01]} Rac8 {[%emt 0:15:05]} 16. e5 {[%emt 0:09:06]} Nd5 {[%emt 0:00:07]} 17. Bxd5 {[%emt 0:00:17]} exd5 {[%emt 0:00:04]} 18. Qe2 {[%emt 0:00:05]} Ne6 {[%emt 0:13:01]} 19. Nf5 {[%emt 0:07:18]} Bc5 {[%emt 0:01:55]} 20. Qg4 {[%emt 0:01:35]} g6 {[%emt 0:01:40]} 21. Nbd6 {[%emt 0:10:45]} Kh8 {[%emt 0:27:39]} 22. Nxc8 {[%emt 0:07:41]} Rxc8 {[%emt 0:05:10]} 23. Nh6 {[%emt 0:17:51]} Bxf1 {[%emt 0:00:34]} 24. Nxf7+ {[%emt 0:00:46]} Kg7 {[%emt 0:00:05]} 25. Nd6 {[%emt 0:00:02]} Bxf2+ {[%emt 0:01:37]} 26. Kxf1 {[%emt 0:00:05]} Qxb2 {[%emt 0:00:34]} 27. Bh6+ {[%emt 0:04:20]} Kh8 {[%emt 0:00:41]} 28. Rd1 {[%emt 0:00:55]} Bd4 {[%emt 0:00:41]} 29. Qf3 {[%emt 0:00:01]} Bxe5 {[%emt 0:00:09]} 30. Nxc8 {[%emt 0:00:07]} Qb7 {[%emt 0:00:15]} 31. Qxd5 {[%emt 0:00:21]} Qa6+ {[%emt 0:00:12]} 32. Qb5 {[%emt 0:00:10]} 1-0

[Event "Vezerkepzo GM March 2022"]
[Site "Budapest"]
[Date "2022.03.21"]
[Round "4.5"]
[White "Vantika Agrawal"]
[Black "Varga, Zoltan"]
[Result "1-0"]
[ECO "A90"]
[WhiteElo "2381"]
[BlackElo "2390"]
[Annotator "NA"]
[PlyCount "106"]
[EventDate "2022.03.17"]
[EventType "tourn"]
[EventCountry "HUN"]
[SourceTitle "playchess.com"]
[Source "ChessBase"]
[SourceQuality "1"]
[TimeControl "40/5400+30:1800+30"]

1. d4 {[%emt 0:01:12]} f5 {[%emt 0:03:42]} 2. Nf3 {[%emt 0:01:38]} Nf6 {[%emt 0:00:08]} 3. g3 {[%emt 0:00:13]} e6 {[%emt 0:00:06]} 4. Bg2 {[%emt 0:00:07]} d5 {[%emt 0:00:04]} 5. O-O {[%emt 0:00:38]} Bd6 {[%emt 0:00:04]} 6. c4 {[%emt 0:00:12]} O-O {[%emt 0:00:09]} 7. b3 {[%emt 0:05:53]} b6 {[%emt 0:01:11]} 8. Ba3 {[%emt 0:13:10]} Bb7 {[%emt 0:13:52]} 9. Qc1 {[%emt 0:15:12]} a5 {[%emt 0:05:15]} 10. c5 {[%emt 0:12:11]} Be7 {[%emt 0:05:43]} 11. Ne5 {[%emt 0:01:56]} Na6 $16 {[%emt 0:12:59]} (11... bxc5 $11 12. Bxc5 Bd6) 12. Nd3 {[%emt 0:19:40]} bxc5 {[%emt 0:10:50]} 13. Nxc5 {[%emt 0:06:09]} Nxc5 {[%emt 0:00:24]} 14. Bxc5 {[%emt 0:00:15]} Ba6 {[%emt 0:00:24]} 15. Qe3 {[%emt 0:03:40]} Ne4 {[%emt 0:05:50]} 16. Bxe7 {[%emt 0:02:13]} Qxe7 {[%emt 0:01:43]} 17. f3 {[%emt 0:05:24]} f4 {[%emt 0:05:09]} 18. gxf4 {[%emt 0:00:37]} Nd6 {[%emt 0:00:02]} 19. Bh3 {[%emt 0:01:33]} Rae8 {[%emt 0:00:10]} 20. Nc3 {[%emt 0:01:48]} Kh8 {[%emt 0:02:37]} 21. Qf2 {[%emt 0:02:43]} Rxf4 {[%emt 0:00:09]} 22. Kh1 {[%emt 0:00:44]} Qh4 {[%emt 0:01:32]} 23. Kg2 {[%emt 0:03:44]} Rxd4 {[%emt 0:00:41]} 24. Qxh4 {[%emt 0:00:09]} Rxh4 {[%emt 0:00:05]} 25. Rfe1 {[%emt 0:01:11]} g5 {[%emt 0:01:23]} 26. Kg3 {[%emt 0:00:42]} d4 {[%emt 0:01:59]} 27. Na4 {[%emt 0:00:19]} Nf5+ {[%emt 0:00:05]} 28. Bxf5 {[%emt 0:00:09]} exf5 {[%emt 0:00:02]} 29. Rac1 {[%emt 0:01:05]} Bxe2 {[%emt 0:00:09]} 30. Nc5 {[%emt 0:00:28]} Re3 {[%emt 0:02:23]} 31. Rc2 {[%emt 0:00:32]} d3 {[%emt 0:01:40]} 32. Nxd3 {[%emt 0:00:30]} Bxd3 {[%emt 0:05:12]} 33. Rxe3 {[%emt 0:00:32]} Bxc2 {[%emt 0:00:28]} 34. Re8+ {[%emt 0:00:21]} Kg7 {[%emt 0:00:06]} 35. Re7+ {[%emt 0:00:04]} Kf6 {[%emt 0:00:03]} 36. Rxc7 {[%emt 0:00:06]} Bb1 {[%emt 0:00:24]} 37. Rc6+ {[%emt 0:00:58]} Ke7 {[%emt 0:00:07]} 38. a3 {[%emt 0:00:53]} Rd4 {[%emt 0:02:52]} 39. Rc5 {[%emt 0:00:21]} h5 {[%emt 0:00:46]} 40. Rxa5 {[%emt 0:00:00]} h4+ {[%emt 0:00:00]} 41. Kf2 {[%emt 0:06:44]} Rd2+ {[%emt 0:02:26]} 42. Ke3 {[%emt 0:03:48]} Rxh2 {[%emt 0:00:07]} 43. Ra7+ {[%emt 0:00:05]} Kf6 {[%emt 0:00:07]} 44. Ra6+ {[%emt 0:00:59]} Kg7 {[%emt 0:00:51]} 45. Ra7+ {[%emt 0:00:48]} Kg6 {[%emt 0:00:10]} 46. Ra6+ {[%emt 0:00:27]} Kh5 {[%emt 0:00:07]} 47. Ra8 {[%emt 0:00:54]} h3 {[%emt 0:00:46]} 48. Rh8+ {[%emt 0:00:47]} Kg6 {[%emt 0:00:10]} 49. b4 {[%emt 0:00:37]} Kg7 {[%emt 0:00:56]} 50. Rh5 {[%emt 0:00:19]} f4+ {[%emt 0:00:07]} 51. Kd4 {[%emt 0:00:03]} Bg6 {[%emt 0:01:51]} 52. Rxg5 {[%emt 0:00:25]} Rg2 {[%emt 0:00:05]} 53. Rc5 {[%emt 0:01:45]} h2 {[%emt 0:01:57]} 1-0

[Event "Vezerkepzo GM March 2022"]
[Site "Budapest"]
[Date "2022.03.22"]
[Round "5.3"]
[White "Csiki, Endre"]
[Black "Prraneeth Vuppala"]
[Result "1/2-1/2"]
[ECO "C47"]
[WhiteElo "2320"]
[BlackElo "2400"]
[Annotator "NA"]
[PlyCount "63"]
[EventDate "2022.03.17"]
[EventType "tourn"]
[EventCountry "HUN"]
[SourceTitle "playchess.com"]
[Source "ChessBase"]
[SourceQuality "1"]
[TimeControl "40/5400+30:1800+30"]

1. e4 {[%emt 0:02:44]} e5 {[%emt 0:00:28]} 2. Nf3 {[%emt 0:00:04]} Nc6 {[%emt 0:00:06]} 3. Nc3 {[%emt 0:00:03]} Nf6 {[%emt 0:00:26]} 4. d4 {[%emt 0:00:02]} exd4 {[%emt 0:00:38]} 5. Nxd4 {[%emt 0:00:05]} Bb4 {[%emt 0:00:29]} 6. Nxc6 {[%emt 0:00:20]} bxc6 {[%emt 0:00:07]} 7. Bd3 {[%emt 0:00:04]} d5 {[%emt 0:00:07]} 8. Bd2 {[%emt 0:00:03]} O-O {[%emt 0:02:29]} 9. O-O {[%emt 0:00:16]} Rb8 {[%emt 0:00:20]} 10. Re1 {[%emt 0:00:54]} Re8 {[%emt 0:00:12]} 11. a3 {[%emt 0:00:07]} Bg4 {[%emt 0:02:02]} 12. f3 {[%emt 0:13:19]} Bc5+ {[%emt 0:01:45]} 13. Kh1 {[%emt 0:00:05]} Bh5 {[%emt 0:00:09]} 14. Bg5 {[%emt 0:14:34]} Bg6 $11 {[%emt 0:26:02]} (14... Rxb2 $2 15. e5 $18 (15. Na4 dxe4 16. Nxb2 exd3 $16)) 15. exd5 {[%emt 0:14:47]} Rxe1+ {[%emt 0:20:43]} 16. Qxe1 {[%emt 0:00:17]} cxd5 {[%emt 0:00:20]} 17. Bxg6 {[%emt 0:09:17]} hxg6 {[%emt 0:00:33]} 18. Rd1 {[%emt 0:03:18]} c6 {[%emt 0:05:43]} 19. b4 {[%emt 0:01:54]} Be7 {[%emt 0:01:35]} 20. Ne2 {[%emt 0:04:39]} Nd7 {[%emt 0:16:57]} 21. Bxe7 {[%emt 0:06:11]} Qxe7 {[%emt 0:00:02]} 22. Nf4 {[%emt 0:08:51]} Ne5 {[%emt 0:13:33]} 23. Nd3 {[%emt 0:01:04]} Re8 {[%emt 0:00:07]} 24. Qxe5 {[%emt 0:01:25]} Qxe5 {[%emt 0:00:06]} 25. Nxe5 {[%emt 0:00:02]} Rxe5 {[%emt 0:00:07]} 26. Kg1 {[%emt 0:00:29]} Re2 {[%emt 0:05:46]} 27. c4 {[%emt 0:02:11]} dxc4 {[%emt 0:00:44]} 28. Rc1 {[%emt 0:00:16]} Ra2 {[%emt 0:00:41]} 29. Rxc4 {[%emt 0:00:05]} Rxa3 {[%emt 0:00:03]} 30. Rxc6 {[%emt 0:00:05]} Rb3 {[%emt 0:00:28]} 31. Ra6 {[%emt 0:00:13]} Rxb4 {[%emt 0:00:03]} 32. Rxa7 {[%emt 0:00:04]} 1/2-1/2

[Event "Vezerkepzo GM March 2022"]
[Site "Budapest"]
[Date "2022.03.22"]
[Round "5.4"]
[White "Seres, Lajos"]
[Black "Pranav Anand"]
[Result "0-1"]
[ECO "B67"]
[WhiteElo "2387"]
[BlackElo "2436"]
[Annotator "ChessBase"]
[PlyCount "56"]
[EventDate "2022.03.17"]
[EventType "tourn"]
[EventCountry "HUN"]
[SourceTitle "playchess.com"]
[Source "ChessBase"]
[SourceQuality "1"]
[TimeControl "40/5400+30:1800+30"]

1. e4 {[%emt 0:00:05]} c5 {[%emt 0:00:08]} 2. Nf3 {[%emt 0:00:04]} Nc6 {[%emt 0:00:04]} 3. d4 {[%emt 0:01:04]} cxd4 {[%emt 0:00:04]} 4. Nxd4 {[%emt 0:00:03]} Nf6 {[%emt 0:00:05]} 5. Nc3 {[%emt 0:00:05]} d6 {[%emt 0:00:02]} 6. Bg5 {[%emt 0:00:12]} e6 {[%emt 0:00:05]} 7. Qd2 {[%emt 0:00:26]} a6 {[%emt 0:00:04]} 8. O-O-O {[%emt 0:00:39]} Bd7 {[%emt 0:00:04]} 9. f3 {[%emt 0:03:41]} Nxd4 {[%emt 0:00:04]} 10. Qxd4 {[%emt 0:00:04]} Be7 {[%emt 0:00:03]} 11. h4 {[%emt 0:03:07]} Qc7 {[%emt 0:07:03]} 12. Kb1 {[%emt 0:00:44]} b5 {[%emt 0:07:35]} 13. g4 {[%emt 0:03:03]} h5 {[%emt 0:15:20]} 14. gxh5 {[%emt 0:02:46]} Nxh5 {[%emt 0:00:02]} 15. Bxe7 {[%emt 0:18:16]} Kxe7 {[%emt 0:00:02]} 16. e5 {[%emt 0:00:18]} dxe5 {[%emt 0:11:31]} 17. Qb4+ {[%emt 0:00:07]} Ke8 {[%emt 0:00:03]} 18. Ne4 {[%emt 0:00:29]} a5 {[%emt 0:02:48]} 19. Nd6+ {[%emt 0:05:12]} Kf8 {[%emt 0:00:14]} 20. Qe1 {[%emt 0:32:05]} Bc6 {[%emt 0:08:21]} 21. Qc3 {[%emt 0:11:48]} Qb6 {[%emt 0:12:05]} 22. Bxb5 {[%emt 0:08:22]} Bxb5 {[%emt 0:00:05]} 23. Qb3 {[%emt 0:03:33]} Ng3 {[%emt 0:04:45]} 24. Rh3 {[%emt 0:03:21]} Rd8 {[%emt 0:01:38]} 25. Qa3 {[%emt 0:02:38]} Kg8 {[%emt 0:00:38]} 26. Rxg3 {[%emt 0:00:21]} Rxh4 {[%emt 0:00:06]} 27. c4 {[%emt 0:00:49]} Bxc4 {[%emt 0:01:01]} 28. Rg2 {[%emt 0:00:32]} Rd4 {[%emt 0:02:17]} 0-1

[Event "Vezerkepzo GM March 2022"]
[Site "Budapest"]
[Date "2022.03.23"]
[Round "6.1"]
[White "Ilincic, Zlatko"]
[Black "Rathanvel, V S"]
[Result "1/2-1/2"]
[ECO "E01"]
[WhiteElo "2331"]
[BlackElo "2477"]
[Annotator "RC"]
[PlyCount "50"]
[EventDate "2022.03.17"]
[EventType "tourn"]
[EventCountry "HUN"]
[SourceTitle "playchess.com"]
[Source "ChessBase"]
[SourceQuality "1"]
[TimeControl "40/5400+30:1800+30"]

1. d4 {[%emt 0:00:06]} d5 {[%emt 0:00:31]} 2. c4 {[%emt 0:00:19]} e6 {[%emt 0:00:08]} 3. g3 {[%emt 0:00:29]} Nf6 {[%emt 0:03:34]} 4. Bg2 {[%emt 0:00:15]} c6 {[%emt 0:01:07]} 5. Qc2 {[%emt 0:01:55]} Be7 {[%emt 0:04:19]} 6. Nd2 {[%emt 0:00:39]} dxc4 {[%emt 0:04:50]} 7. Qxc4 {[%emt 0:00:45]} b5 {[%emt 0:00:35]} 8. Qd3 {[%emt 0:05:22]} O-O {[%emt 0:09:12]} 9. Ngf3 {[%emt 0:04:09]} Bb7 {[%emt 0:09:20]} 10. Ne5 {[%emt 0:13:46]} Qb6 {[%emt 0:04:15]} 11. O-O {[%emt 0:09:02]} Nbd7 {[%emt 0:05:34]} 12. Nxd7 {[%emt 0:07:11]} Nxd7 {[%emt 0:00:06]} 13. Nb3 {[%emt 0:00:15]} c5 {[%emt 0:22:10]} 14. Bxb7 {[%emt 0:00:27]} Qxb7 {[%emt 0:00:04]} 15. dxc5 {[%emt 0:00:13]} Nxc5 {[%emt 0:01:17]} 16. Nxc5 {[%emt 0:00:11]} Bxc5 {[%emt 0:00:06]} 17. Be3 {[%emt 0:00:10]} Rfd8 {[%emt 0:01:08]} 18. Qb3 {[%emt 0:00:12]} Bxe3 {[%emt 0:02:23]} 19. Qxe3 {[%emt 0:00:15]} Rd5 {[%emt 0:04:47]} 20. Rfd1 {[%emt 0:00:36]} Rad8 {[%emt 0:04:00]} 21. Rxd5 {[%emt 0:00:21]} Rxd5 {[%emt 0:00:05]} 22. Rc1 {[%emt 0:00:56]} h6 {[%emt 0:05:11]} 23. b4 {[%emt 0:00:25]} Qd7 {[%emt 0:01:10]} 24. a3 {[%emt 0:01:05]} Rd2 {[%emt 0:01:15]} 25. h4 {[%emt 0:00:54]} Rd1+ {[%emt 0:11:06]} 1/2-1/2

[Event "Vezerkepzo GM March 2022"]
[Site "Budapest"]
[Date "2022.03.23"]
[Round "6.2"]
[White "Pranav Anand"]
[Black "Kulkarni Bhakti"]
[Result "1/2-1/2"]
[ECO "E73"]
[WhiteElo "2436"]
[BlackElo "2388"]
[Annotator "NA RC"]
[PlyCount "61"]
[EventDate "2022.03.17"]
[EventType "tourn"]
[EventCountry "HUN"]
[SourceTitle "playchess.com"]
[Source "ChessBase"]
[SourceQuality "1"]
[TimeControl "40/5400+30:1800+30"]

{[%evp 12,55,48,32767,32767,32767,32767,32767,32767,32767,32767,32767,32767,16,2,12,48,32767,32767,-15,32767,32767,32767,32767,-42,-48,-37,-63,0,0,40,47,48,0,0,-63,0,0,10,6,7,11,13,0,9,0]} 1. d4 {[%emt 0:00:07]} Nf6 {[%emt 0:00:17]} 2. c4 {[%emt 0:00:07]} g6 {[%emt 0:00:22]} 3. h4 {[%emt 0:00:17]} Bg7 {[%emt 0:02:42]} 4. Nc3 {[%emt 0:00:11]} d6 {[%emt 0:02:31]} 5. e4 {[%emt 0:00:15]} O-O {[%emt 0:04:40]} 6. Be2 {[%emt 0:00:08]} c5 {[%emt 0:07:18] 6...c5 scores better than 6...h5.} 7. d5 {[%emt 0:00:08]} b5 {[%emt 0:00:57]} 8. cxb5 {[%emt 0:00:04]} a6 {[%emt 0:00:10]} 9. a4 {[%emt 0:00:44]} axb5 {[%emt 0:00:49]} 10. Bxb5 {[%emt 0:00:02]} Ba6 {[%emt 0:00:35]} 11. Bd2 {[%emt 0:00:59] [#]} e6 $146 {[%emt 0:02:54]} ({Predecessor:} 11... Bxb5 12. axb5 Nbd7 13. Nf3 Rxa1 14. Qxa1 Qb6 15. O-O Rb8 16. Qa6 Ne8 17. Ra1 Kf8 {1-0 (31) Vachier Lagrave,M (2751)-Svidler,P (2714) Saint Louis 2021}) 12. Nge2 {[%emt 0:19:23]} (12. dxe6 $16 fxe6 13. Nf3) 12... exd5 {[%emt 0:06:36]} 13. exd5 {[%emt 0:00:09]} Qe7 {[%emt 0:06:20]} (13... Nbd7 $11 {deserves consideration.}) 14. Bg5 {[%emt 0:07:29]} h6 {[%emt 0:06:24]} 15. Bf4 {[%emt 0:11:51]} (15. Bxf6 $14 {is superior.} Qxf6 16. h5) 15... Nh5 {[%emt 0:06:02]} 16. Kf1 {[%emt 0:10:17]} Nxf4 {[%emt 0:09:02]} 17. Nxf4 {[%emt 0:01:33]} Bxb5+ {[%emt 0:05:23]} 18. axb5 {[%emt 0:00:11]} Rxa1 {[%emt 0:00:20]} 19. Qxa1 {[%emt 0:00:02]} Re8 {[%emt 0:09:48]} (19... Bxc3 $15 {deserves consideration.} 20. bxc3 Qe4) 20. Rh3 {[%emt 0:06:08]} Qf6 {[%emt 0:01:30]} (20... Be5 $11 21. Nd3 Bd4) 21. Nfe2 $1 {[%emt 0:02:30]} Nd7 {[%emt 0:03:11]} 22. Kg1 {[%emt 0:07:51]} (22. Qa7 $14 {is more appropriate.} Qd8 23. h5) 22... Qf5 {[%emt 0:02:02]} 23. Qd1 {[%emt 0:08:19]} (23. Qc1 $11) 23... Ne5 {[%emt 0:02:36]} (23... Qg4 $17 24. Qd2 Ra8) 24. Re3 {[%emt 0:02:35]} Ra8 {[%emt 0:01:40]} 25. Re4 {[%emt 0:01:03]} h5 {[%emt 0:01:51]} 26. Rf4 {[%emt 0:03:01]} Qd7 {[%emt 0:00:23]} 27. Ra4 {[%emt 0:03:29]} Rb8 {[%emt 0:01:38]} 28. Re4 $11 {[%emt 0:07:39]} Ra8 {[%emt 0:01:38]} 29. Ra4 {[%emt 0:01:15]} Rb8 {[%emt 0:00:12]} 30. Re4 {[%emt 0:00:09]} Ra8 {[%emt 0:07:06]} 31. Ra4 {[%emt 0:03:53]} 1/2-1/2

[Event "Vezerkepzo GM March 2022"]
[Site "Budapest"]
[Date "2022.03.23"]
[Round "6.4"]
[White "Vantika Agrawal"]
[Black "Csiki, Endre"]
[Result "1/2-1/2"]
[ECO "D02"]
[WhiteElo "2381"]
[BlackElo "2320"]
[Annotator "ChessBase"]
[PlyCount "47"]
[EventDate "2022.03.17"]
[EventType "tourn"]
[EventCountry "HUN"]
[SourceTitle "playchess.com"]
[Source "ChessBase"]
[SourceQuality "1"]
[TimeControl "40/5400+30:1800+30"]

1. Nf3 {[%emt 0:01:06]} d5 {[%emt 0:01:19]} 2. g3 {[%emt 0:00:17]} g6 {[%emt 0:00:05]} 3. Bg2 {[%emt 0:00:30]} Bg7 {[%emt 0:00:04]} 4. d4 {[%emt 0:00:22]} Nf6 {[%emt 0:00:09]} 5. O-O {[%emt 0:00:31]} O-O {[%emt 0:00:09]} 6. c4 {[%emt 0:00:51]} Nc6 {[%emt 0:00:04]} 7. Nbd2 {[%emt 0:02:43]} Be6 {[%emt 0:00:53]} 8. e3 {[%emt 0:25:05]} dxc4 {[%emt 0:07:09]} 9. Ng5 {[%emt 0:02:03]} Bg4 {[%emt 0:21:28]} 10. f3 {[%emt 0:02:03]} Bc8 {[%emt 0:14:32]} 11. Nxc4 {[%emt 0:25:29]} Qd5 {[%emt 0:00:19]} 12. Ne5 {[%emt 0:00:35]} Nxe5 {[%emt 0:00:54]} 13. f4 {[%emt 0:00:23]} Nf3+ {[%emt 0:00:18]} 14. Bxf3 {[%emt 0:01:50]} Qa5 {[%emt 0:06:20]} 15. Bd2 {[%emt 0:11:13]} Qb6 {[%emt 0:00:07]} 16. Qb3 {[%emt 0:03:55]} h6 {[%emt 0:13:42]} 17. Ne4 {[%emt 0:00:28]} Nxe4 {[%emt 0:00:14]} 18. Bxe4 {[%emt 0:00:24]} Rd8 {[%emt 0:06:33]} 19. Bc3 {[%emt 0:12:15]} Be6 {[%emt 0:05:12]} 20. Qxb6 {[%emt 0:01:38]} axb6 {[%emt 0:00:04]} 21. Bxb7 {[%emt 0:01:20]} Rxa2 {[%emt 0:01:42]} 22. Rxa2 {[%emt 0:01:13]} Bxa2 {[%emt 0:00:12]} 23. Ra1 {[%emt 0:01:07]} Be6 {[%emt 0:01:02]} 24. Bc6 {[%emt 0:03:43]} 1/2-1/2